Cogmind - Beta 14 @@@ ROGUE MODE // 2024.08.26 @ 00:15:21 Player: MadBadger Result: Destroyed by S-10 Pest with Light Assault Rifle Performance ------------- Evolutions (0) 0 Regions Visited (1) 200 Robots Destroyed (29) 145 Value Destroyed (350) 350 Prototype IDs (3) 60 Alien Tech Used (0) 0 Bonus (0) 0 TOTAL SCORE: 755 Bonus ------- None Cogmind --------- Core Integrity 0/250 Matter 284/300 Energy 100/100 System Corruption 0% Temperature Cool (0) Movement Core (750) Ox14 Location -10/Materials Parts ------- > --- POWER (1) -------- (None) > --- PROPULSION (2) --- (None) > --- UTILITY (2) ------ High-capacity Storage Unit Improved Terrain Scanner > --- WEAPON (2) ------- Particle Gun > --- INVENTORY (20) --- Ion Engine Ion Engine Light Ion Engine Small Storage Unit Sensor Array Signal Interpreter Signal Interpreter Small Laser Small Laser Datajack Mining Laser Peak State ------------ > --- POWER ------------ Light Ion Engine > --- PROPULSION ------- Light Treads Light Treads > --- UTILITY ---------- Small Storage Unit Improved Terrain Scanner > --- WEAPON ----------- Medium Laser Light Assault Rifle > --- INVENTORY -------- Light Ion Engine Small Laser Mining Laser [Rating: 9] Favorites ----------- Power Light Ion Engine Engine Light Ion Engine Propulsion Light Treads Treads Light Treads Leg Aluminum Leg Utility Improved Terrain Scanner Device Improved Terrain Scanner Storage High-capacity Storage Unit Weapon Medium Laser Energy Gun Medium Laser Ballistic Gun Light Assault Rifle Launcher Grenade Launcher Build | -11 -10 ------- Run | Yrd Mat Slots Evolved . | . . Power . | . . Propulsion . | . . Utility . | . . Weapon . | . . Parts Attached 11 | 6 5 Power 1 | 1 . Engine 1 | 1 . Core . | . . Reactor . | . . Propulsion 3 | 2 1 Treads 2 | 2 . Leg 1 | . 1 Wheel . | . . Hover . | . . Flight . | . . Utility 3 | 1 2 Device 1 | . 1 Storage 2 | 1 1 Processor . | . . Hackware . | . . Protection . | . . Artifact . | . . Weapon 4 | 2 2 Energy Gun 2 | 1 1 Energy Cannon . | . . Ballistic Gun 1 | 1 . Ballistic Cannon . | . . Launcher 1 | . 1 Special Weapon . | . . Impact Weapon . | . . Slashing Weapon . | . . Piercing Weapon . | . . Special Melee Weapon . | . . Unidentified Prototypes . | . . Parts Lost 7 | . 7 Power 1 | . 1 Propulsion 3 | . 3 Utility . | . . Weapon 3 | . 3 Highest Loss Streak 3 | . 3 To Critical Strikes . | . . Average Slot Usage (%) 72 | . 72 Engine 13 | . 13 Treads 10 | . 10 Leg 3 | . 3 Device 13 | . 13 Storage 14 | . 14 Energy Gun 14 | . 14 Ballistic Gun 2 | . 2 Peak Build Rating 9 | 6 9 Average Rating 7 | 5 8 On Entrance 3 | . 6 Naked Turns . | . . Heaviest Build 47 | 11 47 Greatest Support 40 | 40 40 Greatest Overweight (x) 15 | . 15 Average Overweight (x) 2 | . 3 Largest Inventory Capacity 20 | 8 20 Average Capacity 17 | 7 18 Most Carried 12 | 5 12 Average Carried 7 | 3 8 Final Capacity 20 | 8 20 Final Carried 11 | 4 11 Class Distribution -------------------- 100% | Mutant Dominant Class ---------------- Mutant | -10/Materials Resources | -11 -10 ----------- Run | Yrd Mat Matter Collected 333 | 228 105 Remotely . | . . Salvage Created 840 | 116 724 Parts 58 | 6 52 Haulers Intercepted 1 | . 1 Recyclers Shooed 3 | . 3 Parts Field Recycled . | . . Retrieved Matter . | . . Parts Self-Destructed . | . . Prevented . | . . Kills | -11 -10 ------- Run | Yrd Mat Combat Hostiles Destroyed 9 | . 9 Guns 8 | . 8 AOE 1 | . 1 Classes Destroyed 8 | 3 5 Worker 11 | 1 10 Builder 3 | . 3 Tunneler 1 | 1 . Hauler 1 | . 1 Recycler 2 | 1 1 Watcher 2 | . 2 Swarmer 2 | . 2 Grunt 7 | . 7 Best Kill Streak 4 | 2 4 Combat Bots Only 4 | . 4 Max Kills in Single Turn 2 | 1 2 Gunslinging . | . . Exploded 1 | . 1 Melee . | . . Uniques/NPCs Destroyed . | . . Combat | -11 -10 -------- Run | Yrd Mat Hostile Shots Fired 132 | . 132 Missed 40 | . 40 Damage Taken 1010 | . 1010 Core 254 | . 254 Absorbed by Shields . | . . Core Remaining (%) 100 | 100 . Volleys Fired 132 | 11 121 Largest 2 | 2 2 Hottest 95 | 70 95 Shots Fired 171 | 21 150 Gun 169 | 21 148 Cannon . | . . Launcher 2 | . 2 Special . | . . Kinetic 38 | 11 27 Thermal 131 | 10 121 Explosive 2 | . 2 Electromagnetic . | . . Robot Hit Streak 11 | 6 11 Robot Miss Streak 8 | 2 8 Penetration Max . | . . Secondary Targets . | . . Shots Hit Robots 105 | 13 92 Core Hits 45 | 6 39 Critical Kills 1 | . 1 Critical Parts Destroyed . | . . Critical Strikes 8 | . 8 Burn 7 | . 7 Destroy 1 | . 1 Melee Attacks . | . . Impact . | . . Slashing . | . . Piercing . | . . Sneak Attacks . | . . Combat Hostiles . | . . Follow-up Attacks . | . . Damage Inflicted 1505 | 134 1371 Guns 1274 | 134 1140 Cannons . | . . Explosions 231 | . 231 Melee . | . . Ramming . | . . Kinetic 186 | 49 137 Thermal 1088 | 85 1003 Explosive 231 | . 231 Electromagnetic . | . . Impact . | . . Slashing . | . . Piercing . | . . Highest Corruption . | . . Average Corruption . | . . Corruption Purged . | . . Corruption Blocked . | . . Overload Shots . | . . Overflow Damage 4 | . 4 Projectiles . | . . Explosions 4 | . 4 Melee . | . . Knockbacks . | . . Impact . | . . Kinetic . | . . Secondary . | . . Self-Inflicted Damage 60 | . 60 Shots 2 | . 2 Rammed . | . . Targets Rammed 1 | . 1 Kicked 1 | . 1 Crushed . | . . Highest Temperature 317 | 90 317 Average Temperature 84 | 36 89 Received Heat Transfer 327 | . 327 Effects 2 | . 2 Energy Bleed 2 | . 2 Siege Activations . | . . Robots Corrupted . | . . Combat Hostiles . | . . Parts Fried . | . . Impact Corruptions . | . . Robots Melted . | . . Combat Hostiles . | . . Parts Melted 5 | . 5 Heat Transferred 3552 | 259 3293 Parts Sabotaged . | . . Parts Stolen . | . . Parts Stripped . | . . Power Chain Reactions . | . . Alert | -11 -10 ------- Run | Yrd Mat Peak Influence 126 | 15 126 Initial 9 | . 9 Average 24 | 9 26 Maximum Alert Level . | . . Low Security (%) 100 | 100 100 Level 1 . | . . Level 2 . | . . Level 3 . | . . Level 4 . | . . Level 5 . | . . High Security . | . . Max Security . | . . Squads Dispatched 2 | . 2 Investigation 1 | . 1 Extermination . | . . Reinforcement 1 | . 1 Assault . | . . Garrison . | . . Intercept . | . . Searches Triggered . | . . Construction Impeded . | . . Haulers Reinforced . | . . Active Scanning Responses . | . . Cargo Convoy Interrupts . | . . Stealth | -11 -10 --------- Run | Yrd Mat Distress Signals 3 | . 3 Communications Jammed . | . . Distress Signals . | . . Times Spotted 20 | . 20 Peak Tracking Total 6 | . 6 Tactical Retreats 1 | . 1 Traps | -11 -10 ------- Run | Yrd Mat Traps Triggered 1 | . 1 Indirectly . | . . Trap Hack Attempts . | . . Triggered . | . . Disarmed . | . . Reprogrammed . | . . Reused . | . . Traps Extracted . | . . Installed . | . . Triggered . | . . Machines | -11 -10 ---------- Run | Yrd Mat Machines Disabled . | . . Max in Single Turn . | . . Machines Repaired . | . . Machines Dismantled . | . . Machines Sabotaged . | . . Overloaded Fab Kills . | . . Hacking | -11 -10 --------- Run | Yrd Mat Machines Accessed 5 | . 5 Terminals 5 | . 5 Fabricators . | . . Repair Stations . | . . Recycling Units . | . . Scanalyzers . | . . Garrison Access . | . . Total Hacks 18 | . 18 Successful 12 | . 12 Failed 6 | . 6 Catastrophic . | . . Database Lockouts . | . . Manual . | . . Terminals 18 | . 18 Fabricators . | . . Repair Stations . | . . Recycling Units . | . . Scanalyzers . | . . Garrison Access . | . . Terminal Hacks 12 | . 12 Record 5 | . 5 Prototype ID Bank 2 | . 2 Emergency Access Points 1 | . 1 Alert Level 1 | . 1 Locate Traps 1 | . 1 Dispatch Records 1 | . 1 Zone Layout 1 | . 1 Fabricator Hacks . | . . Repair Station Hacks . | . . Recycling Unit Hacks . | . . Scanalyzer . | . . Garrison Access Hacks . | . . Unauthorized Hacks . | . . Terminals . | . . Fabricators . | . . Repair Stations . | . . Recycling Units . | . . Scanalyzers . | . . Garrison Access . | . . Data Cores Recovered . | . . Used . | . . Hacking Detections 3 | . 3 Full Trace Events 1 | . 1 Feedback Events . | . . Feedback Blocked . | . . Robot Schematics Acquired . | . . Robots Built . | . . Authchips . | . . Time . | . . Total Robot Build Rating . | . . Part Schematics Acquired . | . . Parts Built . | . . Authchips . | . . Time . | . . Total Part Build Rating . | . . Parts Repaired . | . . Time . | . . Parts Recycled . | . . Recycled Matter . | . . Retrieved Matter . | . . Retrieved Components . | . . Parts Scanalyzed . | . . Part Schematics Acquired . | . . Parts Damaged . | . . Bothacking | -11 -10 ------------ Run | Yrd Mat Used RIF Installer . | . . Robots Hacked . | . . Non-combat . | . . Combat . | . . Robot Hacks Applied . | . . Relay Couplers Released . | . . Fabnet Peak Effective % . | . . Robots Rewired . | . . Allies Hacked . | . . Hacks Repelled . | . . Allies | -11 -10 -------- Run | Yrd Mat Total Allies . | . . Largest Group . | . . Highest-Rated Group . | . . Highest-Rated Ally . | . . Total Orders . | . . Ally Attacks . | . . Total Damage . | . . Kills . | . . Allies Corrupted . | . . Allies Melted . | . . Intel | -11 -10 ------- Run | Yrd Mat Robot Analysis Total . | . . Derelict Logs Recovered . | . . Drone Launches . | . . Drone Recoveries . | . . Exploration | -11 -10 ------------- Run | Yrd Mat Turns Passed 2276 | 224 2052 Spaces Moved 636 | 116 520 Core 65 | 6 59 Treads 473 | 110 363 Legs 98 | . 98 Wheels . | . . Hover . | . . Flight . | . . Fastest Speed 50 | 50 160 Average Speed 305 | 154 339 Slowest Speed 800 | 160 800 Overloaded Moves . | . . Propulsion Burnouts . | . . Robots Hopped . | . . Cave-ins Triggered . | . . Exploration Rate (%) 30 | 5 56 Regions Visited 1 Branch Regions . Pre-discovered Areas . | . . Known Exits Taken . | . . Unknown Exits Taken 1 | 1 . Scrap Searched . | . . Spaces Dug . | . . Terrain Destroyed 12 | . 12 Melee . | . . Projectile . | . . AOE 12 | . 12 Terrain Rammed . | . . Walls Destroyed . | . . Machines Disabled . | . . Actions | -11 -10 --------- Run | Yrd Mat Total 803 | 142 661 Wait 3 | . 3 Move 635 | 115 520 Hop . | . . Pick Up 21 | 10 11 Fast Attach . | . . Attach 10 | 6 4 Detach . | . . Swap 1 | . 1 Drop . | . . Fire 132 | 11 121 Melee . | . . Ram . | . . Kick 1 | . 1 Crush . | . . Escape Stasis . | . . Rewire . | . . Trap . | . . Miscellaneous . | . . Route ------- -11/Scrapyard -10/Materials (discovered 3 exits: [*Mat x2] / [*Sub]) History --------- Turn | Location | Event 4 | -11/Scrapyard | Discovered new exit (range 16) 225 | -11/Scrapyard | Entered Materials 312 | -10/Materials | Build established: Mutant 598 | -10/Materials | Discovered new exit (range 3) 1245 | -10/Materials | Discovered new exit (range 3) 2246 | -10/Materials | Core integrity fell below 50% 2256 | -10/Materials | Discovered new exit (range 5) 2268 | -10/Materials | Core integrity fell below 20% 2277 | -10/Materials | Destroyed by S-10 Pest with Light Assault Rifle Last Messages --------------- K-01 Serf collects debris. T-07 Excavator is excavating. K-01 Serf collects debris. T-07 Excavator is excavating. U-05 Engineer lays Concrete. W-16 Scout sends out distress signal. Lgt. Ion Engine destroyed. W-16 Scout sends out distress signal. Destroyed Hover Unit. S-10 Pest destroyed. EXIT=FOUND Grenade Launcher destroyed. U-05 Engineer lays Concrete. Kicked U-05 Engineer. S-10 Pest destroyed. U-05 Engineer lays Concrete. U-05 Engineer builds a Wall. U-05 Engineer lays Concrete. Aluminum Leg destroyed. U-05 Engineer builds a Wall. Map ----- +----------------------------------------------------+ | ?????????????????????????#?# # | | ?????????????????????????#?# """ """ # | | ?????????????????????????#?# """ """ + # | | ?????????????????????? ??#?# """ """ # # | | ??????????????????? ?? ?#?# # # | | ??????????????? ?????? ?#?########### # | | ?????????????????##+## ?############ | | ????????????????? ??? ????????? | | ??????????? ? ??? ?? ?? ? ?? ? | | ?????????????????? ??? ?????? ? ? | | ??????????#??#????# #?????????#?##? ? | | ????????????????### #??????#???##???## # | | ?????????????????## #?#??##?#?????##?# # | | ??????????????????# #?????#?#???#????# # | | ?????? ????######## #???????####???#?# # | | ????????#???# ?# #??????#??##????## # | | ???????#? ??# # ################## | | ??????????#?# # | | ???#??????#???# | | ??###?????????### # | | ????????????#??#### ############### | | ??????????##?#????# #??###??#?#?#### | | ???????# ?#<####??# ###?#########??# | | ???????# # #??# ##?### # | | ???????# %###### ###### + | | ? ????# m= u @ ##?#?# # | | ?????? # ss ###### # | | # + # #######+###??###########?# | | # """?# s ????? ??????#???#??##???# | | ?????? # ??????????#####???#?#?### | | ???????### ???"??? ???#?########### | | ?????????##!! ?????? ?????#??## "T" %+* | | ??????????#=! ! #?#???? ????#?#?# %# | | ? ?????#??# #??? ??????????## """# | | ?????##???########????????????#?## """# | | ????????????????????????????#?#### """## | | ????????????#?????????????#??????# ! #? | | ???????????#??????#????????????########### | | ?????????????????#??#????#???????#?????##? | | ???????????????????????????????????#???#?? | | ????????????#????????#????#??????##??????# | | ????????????#???#???????????#????????#???# | | ????????????????????????##??#??????????#?# | | | | | | | | | | | | | | | +----------------------------------------------------+ Best States ------------- Heat Dissipation 25 Energy Generation 10 Energy Capacity 125 Matter Stores 300 Matter Capacity 300 Sight Range 16 Terrain Scan Range 16 Terrain Scan Density 10 Evasion (%) 40 Recoil Reduction 2 Item Schematics ----------------- None Robot Schematics ------------------ None Fabricated ------------ Nothing Alien Tech Used ----------------- None Achievements -------------- None Challenges ------------ None Game ------ Seed AntigravTargetInterpreter Manual? 0 Play Time 00:20:20 Cumulative 2.3 hours Start 2024.08.25 @ 23:56:09 End 2024.08.26 @ 00:15:21 Sessions 1 Manual Loads 0 Difficulty Rogue Special Mode None Game No. 4 Rogue 4 Adventurer 0 Explorer 0 Win Type - Total 0 Types 0/0/0/0/0/0/0/0/0 Lore% 0 Gallery% 3 Achievement% 3 Wizard Run 0 Options --------- Layout 0 ASCII 0 Keyboard 1 Movement Numpad Keybinds 0 Fullscreen 1 Font 24/Smallcaps Map View 76x50 Zoom Use 0% Tactical HUD 0 Map Filters NONE Filters NONE Steam 1 RUN: 03388085-6ac7-4cf7-89fc-5deee2e88427